{"text_format":"1","workbook":"xlsx","n_sheets":9,"sheets":["Anleitung","Startseite","Mitglieder","Statistik","Sparten","BSB Nord","BSB Freiburg","WLSB","Vorlage-Kopf"],"not_rendered":{"charts":0,"images":1,"macros":1,"external_links":0,"defined_names":3,"comments":0,"pivot_tables":0},"unopened":[],"bounds":{"document_bytes":16777216,"sheet_cells":100000,"rows_first":2000,"rows_last":500,"rows_between":2000,"halvings":0,"cell_chars":16384,"cell_head_chars":4096},"cells_cut":0,"cells_raw":0,"read":"whole","date_system":"1900"}

{"sheet":"Anleitung","index":0,"n_rows":52,"n_cols":7,"rows_kept":52,"cut":false,"hidden":false,"merged":[[21,0,21,6],[3,0,3,5],[5,0,5,6],[6,0,6,6],[7,0,7,6],[8,0,8,6],[9,0,9,6],[10,0,10,6],[11,0,11,6],[18,0,18,6],[19,0,19,6],[39,0,39,6],[22,0,22,6],[23,0,23,6],[24,0,24,6],[25,0,25,6],[31,0,31,6],[32,0,32,6],[33,0,33,6],[34,0,34,6],[35,0,35,6],[37,0,37,6],[38,0,38,6],[51,0,51,6],[40,0,40,6],[41,0,41,6],[42,0,42,6],[43,0,43,6],[44,0,44,6],[45,0,45,6],[46,0,46,6],[47,0,47,6],[48,0,48,6],[49,0,49,6],[50,0,50,6]]}
[]
[]
["Diese Datei dient als Erstellungshilfe für die XML-Austauschdatei zur Bestandsmeldung des BSB Freiburg"]
["Der Autor übernimmt keine Gewähr für die korrekte Funktion"]
[]
["Vorbereitung Ihrer Mitgliederdaten"]
["1. Kopieren Sie Ihre Mitgliederdaten in eine neue Excel-Datei."]
["2. Ordnen Sie die Daten so an, dass jedes Mitglied in einer gesonderten Zeile aufgeführt wird."]
["3. Sie benötigen nur den Geburtsjahrgang des Mitgliedes, das Geschlecht in der Form m/w und die Zugehörigkeit zum Fachverband."]
["     Hinweis: Wenn Sie möchten, können Sie Name und Vorname mitführen. Dies ist nicht notwendig, erleichtert Ihnen aber die Kontrolle."]
["4. Sie führen alle bei Ihnen zu meldenden Fachverbände in jeweils 1 Spalte rechts des Geschlechts (die gültigen Bezeichnungen finden Sie im "]
["    Datenblatt Sparten), die Reihenfolge ist egal."]
[]
["Mustertabelle"]
["Name","Vorname","Jahrgang","Geschlecht","Fußball","Turnen","Leichtathletik"]
["Max","Muster",1950,"m","x"]
["Marie","Muster",2003,"w",null,"x","x"]
[]
["5. Es kann nur der Jahrgang -vierstellige Zahl, kein vollständiges Geburtsdatum- übernommen werden."]
["    Tipp: Geburtsdaten können Sie in Jahreszahlen umwandeln mit dem Befehl =Jahr(Zellbezug), der Zellbezug bezieht sich immer auf das Geburtsdatum"]
[]
["Umwandlung von Geburtstag in Jahreszahl in Bezug auf die Beispieltabelle unten"]
["a. Sofern das Geburtsdatum in der Zelle B2 steht, geben sie in die nächste benachbarte freie Zelle folgende Formel ein:  =JAHR(B2),\n wobei  der Wert in Klammern die Quellkoordinate darstellt, also die Zelle, aus deren Datum das Jahr herausgelesen werden soll.\n - dann übernimmt Excel aus dem Datum ausschließlich das Geburtsjahr"]
["b. Danach markieren Sie B2"]
["c. Sie klicken mit der linken Maustaste auf den unteren rechten Rand (ein schwarzes Kreuz erscheint) und ziehen Sie die Markierung nach unten"]
["d. Sie kopieren die Jahrgänge und fügen sie in eine neue Spalte ein\n (Achtung: beim Einfügen \"nur Werte einfügen\" wählen, da sonst die Formel mitkopiert wird)"]
[]
["2004-03-01","=JAHR(B2)",2004]
["1920-12-02",{"$f":"YEAR(A29)","v":1920},1920]
["2001-11-27",{"$f":"YEAR(A30)","v":2001},2001]
[]
["6. Das Geschlecht muss mit m für männliche Mitglieder bzw. w für weiblich benannt werden, Groß-/Kleinschreibung spielt keine Rolle."]
["    Tipp: Falls notwendig über die Funktion \"Suchen\" --> \"Ersetzen\" (z.B. männlich oder weiblich ausgeschrieben) in m oder w umwandeln."]
["7. Formatvorschrift Fachverband: Die Fachverbandszuordnung nehmen Sie über ein x vor (jedes andere Zeichen wird auch akzeptiert)."]
["    Hinweis: Jedes Mitglied muss mindestens einem Fachverband zugeordnet sein, mehrere sind möglich."]
["    Tipp: ein x kann per \"drag and drop\" vervielfältigt werden. Dies ist vor allem für Einspartenvereine sehr hilfreich."]
[]
["Anleitung zur Erzeugung der Austauschdatei mit diesem Excel-Tool"]
[" 1. Für die Berechnung der Daten muss die Ausführung von Makros erlaubt sein (Erlaubnisnachfrage wird beim Öffnen der Datei angezeigt)."]
[" 2. Füllen Sie die Felder (Vereinsnummer, Bezeichnung, Ansprechpartner) auf dem Blatt \"Startseite\" (Spalte B ); \"BSB Freiburg\" bitte nicht verändern."]
[" 3. Füllen Sie das Blatt Mitglieder, indem Sie die von Ihnen vorbereiteten Daten in das Tabellenblatt kopieren (ohne Überschrift, erst ab Zeile 2!)."]
["     Hinweise: "]
["     Bitte die vorhandenen Beispieldaten überschreiben / löschen."]
["     Jahrgang und Geschlecht : Bitte die Spaltenüberschrift dazu nicht ändern."]
["     Fachverbände (ab Spalte F) bitte über das Drop-down-Menü (erscheint beim Anklicken der Zelle) entsprechend Ihrer Vorarbeit auswählen."]
["     Für die Zuordnung der Mitglieder zu den einzelnen Sparten (Abteilungen) können Sie beliebig viele Spalten neu hinzufügen."]
["     Wichtig: Spalten, die nicht benötigt werden bitte löschen. Es dürfen zwischen den benötigten Fachverbänden keine Leerspalten stehen."]
[" 4. Starten Sie die Berechnung der Daten mit \"Strg-e\" oder über den Button \"Statistik erstellen\" auf dem Tabellenblatt \"Startseite\""]
[" 5. Prüfen Sie das Ergebnis im Tabellenblatt \"Statistik\""]
[" 7. Speichern Sie die Daten mit \"Strg-q\" oder über den Button \"xml-Datei speichern\"  auf dem Tabellenblatt \"Startseite\""]
["      Hinweis: Beim Speichern der XML-Datei wird die Mitgliederliste in dieser Datei nicht gesichert. \n                        Sichern Sie ggf. diese Excel-Datei noch zusätzlich mit einem von Ihnen gewählten Namen in einem Verzeichnis auf Ihrem PC."]
[" 8. Gehen Sie ins BSBverNETzt und lesen Sie dort die gespeicherte Austauschdatei ein. "]

{"sheet":"Startseite","index":1,"n_rows":4,"n_cols":2,"rows_kept":4,"cut":false,"hidden":false,"merged":[]}
["Verband","BSB Freiburg"]
["Vereinsnummer",12345]
["Bezeichnung","Mein Verein (Name)"]
["Ansprechpartner","Name des Ansprechpartners hier eingeben"]

{"sheet":"Mitglieder","index":2,"n_rows":5,"n_cols":12,"rows_kept":5,"cut":false,"hidden":false,"merged":[]}
["Name","Vorname",null,"Jahrgang","Geschlecht","Badminton","Fußball","Kegeln","Squash","Triathlon",null,"Raum für weitere Daten (nicht für die Schnittstelle verwendet)"]
[null,null,null,null,null,null,null,null,null,null,null,"z.B. Name, Vorname, Mitgliederstatus etc."]
[]
[null,null,null,null,null,null,null,null,null,null,null,"Bitte für die weitere Verwendung der Vorlage die "]
[null,null,null,null,null,null,null,null,null,null,null,"bereits ausgefüllten Daten (Beispieldaten) löschen!"]

{"sheet":"Statistik","index":3,"n_rows":3,"n_cols":24,"rows_kept":3,"cut":false,"hidden":false,"merged":[]}
[null,"Gesamtmitglieder",null,null,null,"Badminton",null,null,null,"Fußball",null,null,null,"Kegeln",null,null,null,"Squash",null,null,null,"Triathlon"]
[null,"m","w","Gesamt",null,"m","w","Gesamt",null,"m","w","Gesamt",null,"m","w","Gesamt",null,"m","w","Gesamt",null,"m","w","Gesamt"]
[null,{"$f":"SUM(B4:B11)","v":0},{"$f":"SUM(C4:C11)","v":0},{"$f":"SUM(D4:D11)","v":0},null,{"$f":"SUM(F4:F11)","v":0},{"$f":"SUM(G4:G11)","v":0},{"$f":"SUM(H4:H11)","v":0},null,{"$f":"SUM(J4:J11)","v":0},{"$f":"SUM(K4:K11)","v":0},{"$f":"SUM(L4:L11)","v":0},null,{"$f":"SUM(N4:N11)","v":0},{"$f":"SUM(O4:O11)","v":0},{"$f":"SUM(P4:P11)","v":0},null,{"$f":"SUM(R4:R11)","v":0},{"$f":"SUM(S4:S11)","v":0},{"$f":"SUM(T4:T11)","v":0},null,{"$f":"SUM(V4:V11)","v":0},{"$f":"SUM(W4:W11)","v":0},{"$f":"SUM(X4:X11)","v":0}]

{"sheet":"Sparten","index":4,"n_rows":51,"n_cols":2,"rows_kept":51,"cut":false,"hidden":false,"merged":[]}
["Aikido (AVBW)",3]
["Aikido (FABW)",200]
["American-Football",5]
["Badminton",9]
["Bahnengolf",10]
["Baseball- u. Softball",11]
["Basketball",12]
["Behinderten- u. Rehabilitationssport",13]
["Billard",16]
["Bob- und Schlittensport ",17]
["Boule, Boccia und Pétanque",19]
["Boxen",20]
["Eissport",25]
["Fechten",26]
["Fußball",30]
["Gewichtheben (Athletik)",33]
["Golf",35]
["Handball",36]
["Hockey",37]
["Judo",40]
["Ju-Jutsu",41]
["Kanu",42]
["Karate",43]
["Kegeln",44]
["Klettern",14]
["Leichtathletik",50]
["Luftsport",51]
["Motorbootsport",53]
["Motorsport",54]
["Pferdesport",56]
["Radsport",59]
["Rasenkraftsport",60]
["Ringen",62]
["RKB \"Solidarität\"",63]
["Rollsport",64]
["Rudern",65]
["Rugby",66]
["Schach",67]
["Schießsport",68]
["Schwimmen",70]
["Segeln",72]
["Ski",73]
["Squash",77]
["Taekwondo",80]
["Tanzsport",81]
["Tauchsport",82]
["Tennis",83]
["Tischtennis",84]
["Triathlon",85]
["Turnen",86]
["Volleyball",88]

{"sheet":"BSB Nord","index":5,"n_rows":50,"n_cols":2,"rows_kept":50,"cut":false,"hidden":false,"merged":[]}
["Aikido (AVBW)",3]
["Aikido (FABW)",200]
["American-Football",5]
["Badminton",9]
["Bahnengolf",10]
["Baseball- u. Softball",11]
["Basketball",12]
["Behinderten- u. Rehabilitationssport",13]
["Bergsteigen",14]
["Billard",16]
["Boule, Boccia und Pétanque",19]
["Boxen",20]
["Dart",22]
["Eissport",25]
["Fechten",26]
["Fußball",30]
["Gewichtheben (Athletik)",33]
["Golf",35]
["Handball",36]
["Hockey",37]
["Judo",40]
["Ju-Jutsu",41]
["Kanu",42]
["Karate",43]
["Kegeln",44]
["Leichtathletik",50]
["Motorbootsport",53]
["Motorsport",54]
["Pferdesport",56]
["Radsport",59]
["Rasenkraftsport",60]
["Ringen",62]
["RKB \"Solidarität\"",63]
["Rollsport",64]
["Rudern",65]
["Rugby",66]
["Schach",67]
["Schießsport",68]
["Schwimmen",70]
["Segeln",72]
["Ski",73]
["Squash",77]
["Taekwondo",80]
["Tanzsport",81]
["Tauchsport",82]
["Tennis",83]
["Tischtennis",84]
["Triathlon",85]
["Turnen",86]
["Volleyball",88]

{"sheet":"BSB Freiburg","index":6,"n_rows":51,"n_cols":2,"rows_kept":51,"cut":false,"hidden":false,"merged":[]}
["Aikido (AVBW)",3]
["Aikido (FABW)",200]
["Alpenverein",4]
["American-Football",5]
["Badminton",9]
["Bahnengolf",10]
["Baseball- u. Softball",11]
["Basketball",12]
["Behinderten- u. Rehabilitationssport",13]
["Billard",16]
["Bob- und Schlittensport ",17]
["Boule, Boccia und Pétanque",19]
["Boxen",20]
["Eissport",25]
["Fechten",26]
["Fußball",30]
["Gewichtheben (Athletik)",33]
["Golf",35]
["Handball",36]
["Hockey",37]
["Judo",40]
["Ju-Jutsu",41]
["Kanu",42]
["Karate",43]
["Kegeln",44]
["Leichtathletik",50]
["Luftsport",51]
["Motorbootsport",53]
["Motorsport",54]
["Pferdesport",56]
["Radsport",59]
["Rasenkraftsport",60]
["Ringen",62]
["RKB \"Solidarität\"",63]
["Rollsport",64]
["Rudern",65]
["Rugby",66]
["Schach",67]
["Schießsport",68]
["Schwimmen",70]
["Segeln",72]
["Ski",73]
["Squash",77]
["Taekwondo",80]
["Tanzsport",81]
["Tauchsport",82]
["Tennis",83]
["Tischtennis",84]
["Triathlon",85]
["Turnen",86]
["Volleyball",88]

{"sheet":"WLSB","index":7,"n_rows":53,"n_cols":2,"rows_kept":53,"cut":false,"hidden":false,"merged":[]}
["Aikido (AVBW)",3]
["Aikido (FABW)",200]
["American-Football",5]
["Badminton",9]
["Bahnengolf",10]
["Baseball- und Softball",11]
["Basketball",12]
["Behinderten- und Rehabilitationssport",13]
["Bergsteigen",14]
["Billard",16]
["Bogensport",18]
["Boule, Boccia und Pétanque",19]
["Boxen",20]
["Dart",22]
["Eissport",25]
["Fechten",26]
["Fußball",30]
["Gewichtheben (Athletik)",33]
["Golf",35]
["Handball",36]
["Hockey",37]
["Judo",40]
["Ju-Jutsu",41]
["Kanu",42]
["Karate",43]
["Kegeln",44]
["Leichtathletik",50]
["Moderner Fünfkampf",52]
["Motorbootsport",53]
["Motorsport",54]
["Pferdesport",56]
["Radsport",59]
["Rasenkraftsport",60]
["Ringen",62]
["RKB \"Solidarität\"",63]
["Rollsport",64]
["Rudern",65]
["Rugby",66]
["Schach",67]
["Schießsport",68]
["Schwimmen",70]
["Segeln",72]
["Ski/Snowboard",73]
["Sportakrobatik",201]
["Squash",77]
["Taekwondo",80]
["Tanzsport",81]
["Tauchsport",82]
["Tennis",83]
["Tischtennis",84]
["Triathlon",85]
["Turnen",86]
["Volleyball",88]

{"sheet":"Vorlage-Kopf","index":8,"n_rows":10,"n_cols":1,"rows_kept":10,"cut":false,"hidden":false,"merged":[]}
["<?xml version=\"1.0\" encoding=\"utf-8\" ?>"]
["<Jahrgangszahlen>"]
["      <Software>"]
["            <Schluessel>MS-Excel-wenig.eu-v2.04</Schluessel>"]
["      </Software>"]
["      <Verein>"]
[{"$f":"\"            <Nummer>\"&TEXT(Startseite!B2,\"@\")&\"</Nummer>\"","v":"            <Nummer>12345</Nummer>"}]
[{"$f":"\"            <Bezeichnung>\"&Startseite!B3&\"</Bezeichnung>\"","v":"            <Bezeichnung>Mein Verein (Name)</Bezeichnung>"}]
[{"$f":"\"            <Ansprechpartner>\"&Startseite!B4&\"</Ansprechpartner>\"","v":"            <Ansprechpartner>Name des Ansprechpartners hier eingeben</Ansprechpartner>"}]
["      </Verein>"]